bitfinex-derivatives/quotes_ETHF0:USTF0_20250404
["timestamp","ask_amount","ask_price","bid_price","bid_amount"]
[1743753708355,1.10799197,1819.1,1819.0,1.09981]
[1743753708560,0.00824197,1819.1,1819.0,1.09981]
[1743753709250,0.00824197,1819.1,1819.0,1.85471]
[1743753709453,0.00824197,1819.1,1819.0,3.36111]
[1743753709952,1e-08,1819.1,1819.0,5.86111]
[1743753710253,1e-08,1819.1,1819.0,9.71911]
[1743753710447,1e-08,1819.1,1819.0,15.68911]
[1743753712158,1e-08,1819.1,1819.0,16.13090124]
[1743753712548,1e-08,1819.1,1819.0,15.68911]
[1743753717558,1e-08,1819.1,1819.0,16.10526573]
[1743753719863,0.7113,1819.8,1819.0,15.00545573]
[1743753720059,24.39803087,1820.1,1820.0,1.0992]
[1743753720263,23.29884087,1820.1,1820.0,1.0992]
[1743753720454,19.33634087,1820.1,1820.0,1.0992]
[1743753720659,14.94282676,1820.1,1820.0,57.426]
[1743753720860,10.63300676,1820.1,1820.0,57.426]
[1743753721059,7.82570676,1820.1,1820.0,57.426]
[1743753721258,5.10019676,1820.6,1820.5,1.0989]
[1743753721465,5.10019676,1820.6,1820.5,8.1697]
[1743753721662,5.10019676,1820.6,1820.5,16.6397]
[1743753722273,5.10019676,1820.6,1820.5,57.4397]
[1743753723868,5.10019676,1820.6,1820.5,57.88654664]
[1743753724468,5.10019676,1820.6,1820.5,59.31004664]
[1743753724667,0.00824197,1820.7,1820.6,1.09884]
[1743753727862,1.09884,1820.6,1820.5,5.2675]
[1743753728069,1.09896,1820.4,1820.3,3.844]
[1743753728269,1.09896,1820.4,1820.2,1.4039]
[1743753728270,1.09902,1820.3,1820.2,1.4039]
[1743753728564,2.2202,1820.3,1820.0,7.3739]
[1743753728768,0.7461,1820.3,1820.2,1.09908]
[1743753729263,0.00824197,1820.7,1820.6,1.09884]
[1743753729468,0.00824197,1820.7,1820.6,4.30664]
[1743753729769,0.00824197,1820.7,1820.6,10.27664]
[1743753731173,0.00824197,1820.7,1820.6,7.06884]
[1743753731471,0.00824197,1820.7,1820.6,10.27664]
[1743753731969,0.00824197,1820.7,1820.6,7.06884]
[1743753732366,0.00824197,1820.7,1820.6,10.27664]
[1743753732563,0.00824197,1820.7,1820.6,4.30664]
[1743753732759,0.00824197,1820.7,1820.6,1.09884]
[1743753732963,1.54914197,1820.7,1820.6,1.09884]
[1743753733970,0.00824197,1820.7,1820.6,1.09884]
[1743753735370,0.00824197,1820.7,1820.6,4.30664]
[1743753737862,2.57072197,1820.7,1820.6,4.30664]
[1743753738060,2.57072197,1820.7,1820.6,1.09884]
[1743753738661,1.09884,1820.6,1820.5,2.63157]
[1743753738874,2.61064,1820.6,1820.5,1.09887]
[1743753739761,1.5118,1820.6,1820.5,1.09887]
[1743753739970,2.61064,1820.6,1820.5,1.09887]
[1743753740772,1.5118,1820.6,1820.5,1.09887]
[1743753741375,0.00824197,1820.7,1820.6,1.09884]
[1743753741573,1.46094197,1820.7,1820.6,1.09884]
[1743753741774,2.55972197,1820.7,1820.6,1.09884]
[1743753744269,0.00824197,1820.7,1820.6,1.09884]
[1743753744465,0.00824197,1820.7,1820.6,2.62814]
[1743753744670,0.00824197,1820.7,1820.6,41.89884]
[1743753744869,2.57222197,1820.7,1820.6,1.09884]
[1743753746780,1.47344197,1820.7,1820.6,1.09884]
[1743753747375,0.00824197,1820.7,1820.6,1.09884]
[1743753748082,0.00824197,1820.7,1820.6,41.89884]
[1743753748476,0.00824197,1820.7,1820.6,45.10664]
[1743753749878,0.00824197,1820.7,1820.6,41.89884]
[1743753750082,1.10702197,1820.7,1820.6,41.89884]
[1743753750272,2.54712197,1820.7,1820.6,1.09884]
[1743753753482,1.44834197,1820.7,1820.6,1.09884]
[1743753753684,2.54712197,1820.7,1820.6,1.09884]
[1743753753982,1.44834197,1820.7,1820.6,1.09884]
[1743753754186,2.54712197,1820.7,1820.6,1.09884]
[1743753754382,1.44834197,1820.7,1820.6,1.09884]
[1743753755285,2.54712197,1820.7,1820.6,1.09884]
[1743753755783,1.44834197,1820.7,1820.4,1.09892]
[1743753756081,1.09896,1820.4,1820.3,2.59409]
[1743753756286,4.30676,1820.5,1820.4,1.09896]
[1743753756587,5.83276,1820.5,1820.4,1.09896]
[1743753757685,1.09896,1820.4,1820.3,2.59406]
[1743753758282,1.10707197,1820.7,1820.6,1.09884]
[1743753758477,0.00824197,1820.7,1820.6,1.09884]
[1743753758895,0.00824197,1820.7,1820.6,2.58584]
[1743753759294,0.00824197,1820.7,1820.6,5.79364]
[1743753759796,0.00824197,1820.7,1820.6,11.76364]
[1743753761193,1.97e-06,1820.7,1820.6,14.26364]
[1743753762296,3.2078,1821.5,1820.6,13.1648]
[1743753762501,21.47225118,1821.9,1821.4,3.2078]
[1743753762706,1.0982,1821.7,1821.5,6.35197]
[1743753762902,1.09824,1821.6,1821.5,1.4047]
[1743753763201,3.2078,1821.7,1821.4,1.09831]
[1743753763396,1.474,1821.6,1821.5,41.89829]
[1743753763695,2.57224,1821.6,1821.5,40.8]
[1743753764096,2.57224,1821.6,1821.5,41.8983]
[1743753764399,1.09821,1821.7,1821.6,1.09824]
[1743753764802,4.6818,1821.8,1821.6,1.09824]
[1743753765096,2.57212,1821.8,1821.7,1.4047]
[1743753765402,2.57212,1821.8,1821.7,2.50288]
[1743753765599,2.57212,1821.8,1821.7,1.4047]
[1743753765899,1.09812,1821.8,1821.7,2.50288]
[1743753766101,3.2078,1821.8,1821.7,1.4047]
[1743753766308,24.68005118,1822.2,1822.0,1.09797]
[1743753766599,1.09798,1822.1,1821.9,1.09802]
[1743753766800,1.09798,1822.1,1822.0,1.5214]
[1743753766997,1.09798,1822.1,1822.0,2.6194]
[1743753767198,24.68005118,1822.2,1822.1,1.09794]
[1743753767402,24.68005118,1822.2,1822.0,2.61936]
[1743753767599,1.09794,1822.1,1822.0,1.5214]
[1743753767800,2.56314,1822.1,1822.0,1.5214]
[1743753768305,1.4652,1822.1,1821.8,7.06808]
[1743753768495,1.4652,1822.1,1821.9,1.09805]
[1743753768698,1.09798,1822.1,1821.9,1.4211]
[1743753768903,1.098,1822.0,1821.9,2.5191]
[1743753769105,4.6323,1822.2,1821.9,2.5191]
[1743753769306,1.09797,1822.1,1821.9,2.5191]
[1743753769602,4.30559,1822.4,1822.0,2.74497]
[1743753769797,4.30559,1822.4,1822.2,1.09787]
[1743753769798,1.09784,1822.3,1822.2,1.09787]
[1743753769993,1.09784,1822.3,1822.1,2.51899]
[1743753770193,1.09784,1822.3,1822.1,1.4211]
[1743753770394,1.09782,1822.3,1822.1,1.4211]
[1743753770701,1.4245,1822.4,1822.1,1.4211]
[1743753770901,1.09788,1822.2,1822.1,1.4211]
[1743753771101,1.098,1822.0,1821.8,1.09806]
[1743753771407,1.098,1822.0,1821.9,1.09806]
[1743753771706,5.4019,1822.1,1821.9,1.09806]
[1743753771899,5.4019,1822.1,1821.8,1.09808]
[1743753772104,1.09812,1821.8,1821.7,2.51925]
[1743753772501,1.09809,1821.9,1821.7,2.51925]
[1743753772995,1.09809,1821.9,1821.8,1.09812]
[1743753773399,1.09812,1821.8,1821.7,2.51923]
[1743753773600,5.4019,1822.1,1821.7,2.51923]
[1743753773797,0.6958,1822.0,1821.7,2.51923]
[1743753774009,1.09808,1821.9,1821.8,1.09811]
[1743753774695,1.09812,1821.8,1821.7,2.51923]
[1743753774908,1.4411,1821.9,1821.8,1.09812]
[1743753774909,2.53921,1821.9,1821.8,1.09812]
[1743753775107,1.4411,1821.9,1821.7,1.4211]
[1743753775308,1.09812,1821.8,1821.7,2.51923]
[1743753775808,4.30592,1821.8,1821.7,1.4211]
[1743753776106,4.30592,1821.8,1821.7,2.51928]
[1743753776407,1.09812,1821.8,1821.7,2.51928]
[1743753776704,4.30592,1821.8,1821.7,2.51928]
[1743753777010,1.0979,1822.2,1822.1,1.09794]
[1743753777603,1.09788,1822.3,1822.2,1.09788]
[1743753777811,4.0119,1822.4,1822.3,1.09782]
[1743753778205,1.09784,1822.3,1822.2,1.09783]
[1743753778509,2.57076,1822.4,1822.3,1.09782]
[1743753779007,21.47225118,1822.5,1822.4,1.09776]
[1743753779198,20.08455118,1822.5,1822.4,9.56776]
[1743753779698,20.08455118,1822.5,1822.4,47.86776]
[1743753779904,21.18225118,1822.5,1822.4,40.8]
[1743753780397,1.09782,1822.3,1822.2,7.06784]
[1743753780602,1.0978,1822.4,1822.2,7.06784]
[1743753780807,1.09782,1822.3,1822.2,7.06784]
[1743753781208,22.28905118,1822.5,1822.2,5.97]
[1743753781399,1.81263,1822.5,1822.4,1.09776]
[1743753781601,1.81263,1822.5,1822.2,5.97]
[1743753781602,1.09776,1822.4,1822.2,5.97]
[1743753781801,1.09779,1822.4,1822.3,1.09778]
[1743753782003,1.09782,1822.3,1822.2,7.06783]
[1743753782899,1.09782,1822.3,1822.2,5.97]
[1743753783104,1.09788,1822.2,1822.1,1.09788]
[1743753783304,2.2426,1822.3,1822.2,1.09788]
[1743753783506,0.753,1822.3,1822.0,4.5292]
[1743753783710,1.85085,1822.3,1822.2,1.09788]
[1743753784107,1.85082,1822.3,1822.2,1.09788]
[1743753784304,3.38012,1822.3,1822.2,1.09788]
[1743753784716,1.0979,1822.2,1822.1,1.09788]
[1743753784908,1.09789,1822.2,1822.0,48.537]
[1743753785206,3.38017,1822.3,1822.2,1.09788]
[1743753785514,1.09773,1822.5,1822.4,1.09773]
[1743753786110,1.09782,1822.4,1822.3,1.0978]
[1743753786613,2.74442,1822.4,1822.0,44.0078]
[1743753786815,1.09803,1822.0,1821.9,1.09799]
[1743753787109,1.09798,1822.1,1822.0,1.09796]
[1743753787314,1.098,1822.0,1821.9,41.89802]
[1743753787510,1.85683,1822.2,1822.1,1.09794]
[1743753787707,0.7589,1822.2,1822.1,1.09794]
[1743753788106,1.85678,1822.2,1822.1,1.09794]
[1743753788406,3.28778,1822.2,1822.1,1.09794]
[1743753788607,2.1899,1822.2,1822.1,1.09794]
[1743753788807,1.09761,1822.7,1822.6,1.09758]
[1743753789109,3.28751,1822.7,1822.6,1.09758]
[1743753789310,1.85651,1822.7,1822.6,1.09758]
[1743753789613,1.85651,1822.7,1822.6,41.89758]
[1743753789809,0.7592,1822.9,1822.6,40.8]
[1743753790010,1.09754,1822.8,1822.7,1.09752]
[1743753790310,0.92670797,1823.0,1822.9,1.09746]
[1743753790514,0.16860797,1823.0,1822.9,1.09746]
[1743753791002,0.16860797,1823.0,1822.6,40.8]
[1743753791202,3.2078,1822.7,1822.6,1.09764]
[1743753791507,1.09755,1822.8,1822.7,1.09755]
[1743753791707,3.32578,1822.9,1822.8,1.09752]
[1743753791907,6.53358,1822.9,1822.8,1.09752]
[1743753792306,6.53358,1822.9,1822.6,40.8]
[1743753792307,1.09758,1822.7,1822.6,41.89761]
[1743753792510,1.09758,1822.7,1822.6,1.09764]
[1743753793714,1.09758,1822.7,1822.5,3.85224197]
[1743753793715,1.09764,1822.6,1822.5,0.00824197]
[1743753793915,2.58994,1822.6,1822.5,0.00824197]
[1743753794711,7.8423,1822.6,1821.9,5.97]
[1743753794913,7.8423,1822.6,1821.6,11.9234]
[1743753794914,1.098,1822.0,1821.6,11.9234]
[1743753795210,3.2078,1822.1,1821.6,9.1778]
[1743753795418,3.2078,1821.9,1821.6,1.09822]
[1743753795601,1.09818,1821.7,1821.6,1.09822]
[1743753795804,1.09818,1821.7,1821.6,1.10646197]
[1743753796009,0.00824197,1821.9,1821.7,1.09818]
[1743753796206,0.00824197,1821.9,1821.8,1.09812]
[1743753797613,0.00824197,1821.9,1821.8,10.66092]
[1743753797816,1e-08,1821.9,1821.8,10.66092]
[1743753798113,1e-08,1821.9,1821.8,17.33302]
[1743753800917,1e-08,1821.9,1821.8,17.32702]
[1743753801617,1e-08,1821.9,1821.8,58.13002]
[1743753801818,1e-08,1821.9,1821.8,58.12902]
[1743753802012,1e-08,1821.9,1821.8,54.27802]
[1743753802211,1e-08,1821.9,1821.8,58.12802]
[1743753802819,1e-08,1821.9,1821.8,55.62802]
[1743753803407,1e-08,1821.9,1821.8,58.12802]
[1743753804214,1e-08,1821.9,1821.8,51.07592]
[1743753804421,1e-08,1821.9,1821.8,54.91892]
[1743753805720,1.09806001,1821.9,1821.8,1.09812]
[1743753805919,1e-08,1821.9,1821.8,1.09812]
[1743753806116,1.09806001,1821.9,1821.8,43.39302]
[1743753806316,4.71490001,1821.9,1821.6,0.00824197]
[1743753806522,1.09818,1821.7,1821.6,0.00824197]
[1743753807021,1.4823,1821.7,1821.6,1.10648197]
[1743753807226,1.09818,1821.7,1821.6,0.00824197]
[1743753807420,1.09818,1821.7,1821.6,1.50314197]
[1743753807610,2.58048,1821.7,1821.6,0.00824197]
[1743753810827,5.08048,1821.7,1821.6,0.00824197]
[1743753811022,1.09848,1821.2,1821.1,2.48982]
[1743753811231,1.09848,1821.2,1821.1,2.48984]
[1743753811529,2.2558,1821.4,1821.1,42.1913]
[1743753811718,2.58402,1821.3,1821.2,1.3913]
[1743753811923,2.58402,1821.3,1821.2,2.48978]
[1743753812129,5.79182,1821.3,1821.2,1.3913]
[1743753812629,1.09848,1821.2,1821.1,40.80824197]
[1743753813128,1.09848,1821.2,1821.1,42.19954197]
[1743753813328,2.58408,1821.2,1821.1,1e-08]
[1743753813630,1.4856,1821.2,1821.1,1e-08]
[1743753813931,2.58408,1821.2,1821.1,1e-08]
[1743753814933,5.08408,1821.2,1821.1,1e-08]
[1743753818230,2.58408,1821.2,1821.1,1e-08]
[1743753818434,6.42208,1821.2,1821.1,1e-08]
[1743753818826,1.4856,1821.2,1821.1,1e-08]
[1743753819027,2.58408,1821.2,1821.1,1e-08]
[1743753819533,3.2078,1821.3,1821.2,1.09848]
[1743753819729,1.86858,1821.4,1821.1,1.48540001]
[1743753819926,1.86858,1821.4,1821.2,1.09848]
[1743753820123,0.7702,1821.4,1821.3,2.51742]
[1743753820728,1.86856,1821.4,1821.3,2.51742]
[1743753820930,0.7702,1821.4,1821.3,2.51742]
[1743753821236,1.86856,1821.4,1821.3,1.419]
[1743753821536,4.30614,1821.5,1821.4,1.09836]
[1743753821734,1.09836,1821.4,1821.3,42.219]
[1743753821934,2.61146,1821.4,1821.3,40.8]
[1743753822232,1.09847,1821.3,1821.2,1.09846]
[1743753822427,1.09848,1821.2,1821.1,2.51750001]
[1743753822635,1.5131,1821.3,1821.1,42.21900001]
[1743753822829,2.61152,1821.3,1821.2,1.419]
[1743753823334,1.09848,1821.2,1821.1,40.80000001]
[1743753823530,3.31638,1821.2,1821.1,1e-08]
[1743753824037,5.81638,1821.2,1821.1,1e-08]
[1743753825625,3.31638,1821.2,1821.1,1.09854001]
[1743753825831,0.7028,1821.2,1821.1,1.09854001]
[1743753827534,3.2078,1821.5,1821.1,1e-08]
[1743753827839,5.06836,1821.6,1821.5,1.0983]
[1743753828041,1.86056,1821.6,1821.5,1.0983]
[1743753828239,3.30446,1821.6,1821.5,1.0983]
[1743753828642,1.0983,1821.5,1821.4,1.4548]
[1743753828939,1.09845,1821.3,1821.2,1.09843]
[1743753829140,1.09845,1821.3,1821.2,2.56973]
[1743753829838,1.09845,1821.3,1821.2,1.4713]
[1743753830042,1.09845,1821.3,1821.2,2.56978]
[1743753831244,1.09845,1821.3,1821.2,1.4713]
[1743753831541,1.09845,1821.3,1821.2,2.56978]
[1743753831840,1.09845,1821.3,1821.2,1.4713]
[1743753832249,1.09845,1821.3,1821.2,2.56978]
[1743753832837,1.09845,1821.3,1821.2,1.4713]
[1743753833037,1.09845,1821.3,1821.2,2.56978]
[1743753833741,1.09845,1821.3,1821.2,43.36978]
[1743753834239,1.09845,1821.3,1821.2,42.2713]
[1743753834441,1.09845,1821.3,1821.2,1.4713]
[1743753834731,2.58615,1821.3,1821.2,1.4713]
[1743753835542,2.58615,1821.3,1821.2,2.56978]
[1743753835848,5.0684,1821.6,1821.5,1.0983]
[1743753836144,1.09836,1821.5,1821.4,1.09833]
[1743753836343,1.09836,1821.5,1821.4,2.49823]
[1743753836733,1.09836,1821.5,1821.4,1.3999]
[1743753837545,2.52076,1821.5,1821.4,1.3999]
[1743753837737,1.09836,1821.5,1821.4,1.3999]
[1743753838242,1.09836,1821.5,1821.4,2.49826]
[1743753838446,0.7623,1821.6,1821.5,1.0983]
[1743753838646,0.7623,1821.6,1821.5,2.5019]
[1743753838839,1.09824,1821.6,1821.5,2.5019]
[1743753839945,1.09824,1821.6,1821.5,1.4036]
[1743753840346,1.09824,1821.6,1821.5,2.5019]
[1743753840548,1.09824,1821.6,1821.5,1.4036]
[1743753841653,3.29244,1821.6,1821.5,1.4036]
[1743753841839,6.50024,1821.6,1821.5,1.4036]
[1743753842441,6.50024,1821.6,1821.2,12.6249]
[1743753842442,1.09842,1821.3,1821.2,9.8787]
[1743753842641,1.09842,1821.3,1821.2,7.76938]
[1743753842844,1.09842,1821.3,1821.2,7.06848]
[1743753843846,1.09842,1821.3,1821.2,2.59546]
[1743753844649,1.09842,1821.3,1821.2,1.497]
[1743753845049,1.09848,1821.2,1821.1,40.80000001]
[1743753845250,4.30628,1821.2,1821.1,1e-08]
[1743753845654,6.80628,1821.2,1821.1,1e-08]
[1743753845854,8.93968,1821.2,1821.1,1e-08]
[1743753847454,5.49311,1821.0,1820.2,1.09903]
[1743753847750,3.2078,1820.5,1820.3,1.09902]
[1743753848052,1.09902,1820.3,1820.2,2.49514]
[1743753848760,1.10724197,1820.4,1820.3,1.09901]
[1743753848961,0.00824197,1820.4,1820.1,10.56624197]
[1743753849660,0.00824197,1820.4,1820.1,4.59624197]
[1743753849961,1.10723197,1820.4,1820.3,1.09902]
[1743753850161,0.00824197,1820.4,1820.3,1.09902]
[1743753850354,0.00824197,1820.4,1820.2,4.30684]
[1743753850550,1.09904,1820.3,1820.2,1.09904]
[1743753850754,0.00824197,1820.4,1820.3,1.09902]
[1743753852655,0.00824197,1820.4,1820.3,4.91502]
[1743753852865,0.00824197,1820.4,1820.3,45.71502]
[1743753857062,1.10720197,1820.4,1820.3,45.71502]
[1743753857260,0.00824197,1820.4,1820.3,45.71502]
[1743753857659,1.10720197,1820.4,1820.3,45.71502]
[1743753857860,0.00824197,1820.4,1820.3,45.71502]
[1743753858061,1.10720197,1820.4,1820.3,45.71502]
[1743753858255,1.10723197,1820.4,1820.3,1.09902]
[1743753858462,0.00824197,1820.4,1820.3,1.09902]
[1743753858660,1.10720197,1820.4,1820.3,1.09902]
[1743753858866,1.09908,1820.2,1820.1,0.00824197]
[1743753859562,3.34928,1820.2,1820.1,0.00824197]
[1743753862064,1.09938,1819.8,1819.7,1.09937]
[1743753862368,1.09953,1819.5,1819.4,1.09953]
[1743753862671,1.09953,1819.5,1819.4,41.89953]
[1743753863166,2.9765,1819.7,1819.3,0.00824197]
[1743753863167,1.09957,1819.4,1819.3,0.00824197]
[1743753863568,4.30737,1819.4,1819.3,0.00824197]
[1743753863871,8.28907,1819.4,1819.3,0.00824197]
[1743753867971,5.78907,1819.4,1819.3,0.00824197]
[1743753869176,4.30737,1819.4,1819.3,0.00824197]
[1743753869369,4.30737,1819.4,1819.3,1.49014197]
[1743753871077,4.30737,1819.4,1819.3,0.00824197]
[1743753873184,3.2078,1819.8,1819.3,0.00824197]
[1743753873478,1.09943,1819.7,1819.3,2.75726197]
[1743753873672,1.09943,1819.7,1819.5,1.09946]
[1743753873975,1.09943,1819.7,1819.6,1.4779]
[1743753874178,1.09951,1819.5,1819.4,1.09952]
[1743753874480,4.6057,1819.6,1819.3,0.00824197]
[1743753874677,1.09952,1819.5,1819.4,1.09953]
[1743753874878,4.30729,1819.6,1819.5,1.09951]
[1743753875478,3.2078,1819.6,1819.5,1.09951]
[1743753875680,1.09951,1819.5,1819.4,2.55983]
[1743753875981,1.09957,1819.4,1819.3,1.10787197]
[1743753876182,1.09957,1819.4,1819.3,0.00824197]
[1743753876476,4.30737,1819.4,1819.3,1.46854197]
[1743753876688,5.71437,1819.4,1819.3,0.00824197]
[1743753878183,4.30737,1819.4,1819.3,1.10787197]
[1743753878481,4.30737,1819.4,1819.3,2.52997197]
[1743753878482,1.09957,1819.4,1819.3,2.52997197]
[1743753878983,1.09957,1819.4,1819.3,1.43034197]
[1743753879480,2.60447,1819.4,1819.3,1.43034197]
[1743753879878,1.09957,1819.4,1819.3,1.43034197]
[1743753880078,2.60447,1819.4,1819.3,0.00824197]
[1743753880378,5.10447,1819.4,1819.3,0.00824197]
[1743753882077,2.60447,1819.4,1819.3,0.00824197]
[1743753889987,5.10447,1819.4,1819.3,1e-08]
[1743753895592,8.85847,1819.4,1819.3,1e-08]
[1743753895797,8.85747,1819.4,1819.3,1e-08]
[1743753900101,1.09999,1818.7,1818.6,0.7026]
[1743753901297,1.09999,1818.7,1818.6,2.1982]
[1743753904601,4.31601197,1818.8,1818.6,3.29821]
[1743753904800,4.31601197,1818.8,1818.7,1.4157]
[1743753912098,4.31597197,1818.8,1818.7,2.51569]
[1743753912305,1.10817197,1818.8,1818.7,2.51569]
[1743753912504,4.31597197,1818.8,1818.7,1.4157]
[1743753917700,1.10029,1818.2,1818.1,40.8]
[1743753917904,1.10029,1818.2,1818.1,0.7668]
[1743753918607,1.10026,1818.3,1818.1,0.7668]
[1743753918904,1.10019,1818.4,1818.3,1.1002]
[1743753919106,1.10011,1818.5,1818.4,1.10012]
[1743753920112,1.10018,1818.4,1818.3,1.10019]
[1743753920904,1.10018,1818.4,1818.3,2.58289]
[1743753921410,1.10018,1818.4,1818.3,2.58293]
[1743753921607,1.10017,1818.4,1818.3,2.58288]
[1743753921807,1.10017,1818.4,1818.3,1.4827]
[1743753922008,1.10017,1818.4,1818.3,2.58293]
[1743753922709,1.10017,1818.4,1818.3,1.4827]
[1743753922906,1.10017,1818.4,1818.3,2.58293]
[1743753923112,1.10017,1818.4,1818.3,1.4827]
[1743753923310,1.10017,1818.4,1818.3,2.58293]
[1743753924713,1.10017,1818.4,1818.3,1.4827]
[1743753925503,1.10017,1818.4,1818.3,2.58293]
[1743753926011,1.10017,1818.4,1818.3,1.4827]
[1743753926805,1.10017,1818.4,1818.3,2.58293]
[1743753927606,1.10017,1818.4,1818.3,1.4827]
[1743753928002,1.10017,1818.4,1818.3,2.58293]
[1743753928204,1.10017,1818.4,1818.3,1.4827]
[1743753929011,2.62607,1818.4,1818.3,1.4827]
[1743753929815,1.10023,1818.3,1818.2,0.753]
[1743753930010,1.10029,1818.2,1818.1,2.2407]
[1743753930203,1.10029,1818.2,1818.1,1.4739]
[1743753930410,1.10035,1818.1,1818.0,0.00824197]
[1743753930615,5.84215,1818.1,1818.0,0.00824197]
[1743753931114,1.10066,1817.6,1817.4,5.97]
[1743753931310,1.10072,1817.5,1817.4,2.57464]
[1743753931510,1.10072,1817.5,1817.4,1.4739]
[1743753931921,7.49349,1817.6,1817.2,42.2467]
[1743753932214,1.1008,1817.4,1817.2,43.72609472]
[1743753932414,1.1008,1817.4,1817.3,2.53904]
[1743753932615,1.10072,1817.5,1817.4,1.10075]
[1743753932817,1.10072,1817.5,1817.4,2.53895]
[1743753933516,1.10072,1817.5,1817.4,1.4382]
[1743753933914,1.10072,1817.5,1817.4,2.53898]
[1743753934722,1.10072,1817.5,1817.4,1.4382]
[1743753935324,2.54122,1817.5,1817.4,1.4382]
[1743753936417,1.10072,1817.5,1817.4,1.4382]
[1743753937421,1.10072,1817.5,1817.2,42.90429472]
[1743753937422,1.10084,1817.3,1817.2,42.90429472]
[1743753937812,1.10084,1817.3,1817.2,42.25219472]
[1743753938115,1.10084,1817.3,1817.2,0.00549472]
[1743753938308,0.7027,1817.3,1816.7,2.75287]
[1743753938513,1.1009,1817.3,1817.0,0.7587]
[1743753938712,1.5383,1817.4,1817.1,4.25471]
[1743753939017,1.10072,1817.5,1817.4,1.10078]
[1743753939221,4.30852,1817.5,1817.4,1.10078]
[1743753939419,1.10072,1817.5,1817.4,0.7587]
[1743753939616,1.10072,1817.5,1817.4,1.85948]
[1743753940921,1.10072,1817.5,1817.4,0.7587]
[1743753941422,1.10072,1817.5,1817.4,1.85948]
[1743753941622,1.10072,1817.5,1817.4,2.1677]
[1743753944523,1.10072,1817.5,1817.4,3.26848]
[1743753944722,0.00824197,1817.6,1817.5,1.10072]
[1743753945027,0.00824197,1817.6,1817.5,2.58102]
[1743753945324,3.21604197,1817.6,1817.5,2.58102]
[1743753945621,4.31670197,1817.6,1817.5,1.4803]
[1743753946628,1.10890197,1817.6,1817.5,1.4803]
[1743753947020,1.10072,1817.5,1817.4,0.7587]
[1743753947215,1.10072,1817.5,1817.3,1.75281]
[1743753947216,1.10078,1817.4,1817.3,2.1323]
[1743753947418,1.10078,1817.4,1817.3,0.652]
[1743753947419,4.30858,1817.4,1817.3,0.652]
[1743753947623,1.10102,1817.0,1816.9,0.7262]
[1743753947818,1.10102,1817.0,1816.9,1.5005]
[1743753948227,2.64172,1817.0,1816.9,2.60158]
[1743753948418,2.64172,1817.0,1816.9,1.5005]
[1743753949022,3.40512,1817.0,1816.9,1.5005]
[1743753949430,6.61292,1817.0,1816.9,1.5005]
[1743753949625,2.75281,1816.9,1816.5,4.30909]
[1743753949827,2.75281,1816.9,1816.6,1.5005]
[1743753949828,1.1012,1816.7,1816.6,1.5005]
[1743753950126,1.10126,1816.6,1816.5,1.41012]
[1743753950528,1.10126,1816.6,1816.5,42.21012]
[1743753950830,1.10126,1816.6,1816.5,0.3088]
[1743753951425,2.61286,1816.6,1816.5,2.91062]
[1743753951727,1.10126,1816.6,1816.5,2.91062]
[1743753952732,1.10126,1816.6,1816.5,1.8093]
[1743753952928,2.61286,1816.6,1816.5,1.8093]
[1743753953326,2.61286,1816.6,1816.5,2.91062]
[1743753953535,1.10126,1816.6,1816.5,2.91062]
[1743753953734,1.10126,1816.6,1816.5,2.60182]
[1743753955328,1.10126,1816.6,1816.5,1.5005]
[1743753955729,1.10138,1816.4,1816.3,0.7262]
[1743753956028,1.10138,1816.4,1816.3,1.4061]
[1743753956730,1.10144,1816.3,1816.2,7.80859]
[1743753956931,1.10144,1816.3,1816.2,6.7071]
[1743753957235,1.10144,1816.3,1816.2,7.8086]
[1743753957831,3.21604197,1816.5,1816.2,9.2071]
[1743753958031,4.31742197,1816.5,1816.4,1.10138]
[1743753958232,1.10148,1816.3,1816.2,1.10144]
[1743753958433,4.31739197,1816.5,1816.4,1.10138]
[1743753958638,1.10138,1816.4,1816.3,2.55682]
[1743753958933,1.10138,1816.4,1816.3,1.4554]
[1743753959138,1.1015,1816.2,1816.1,0.7678]
[1743753959338,1.1015,1816.2,1816.1,3.32476]
[1743753959538,1.1015,1816.2,1816.1,1.4554]
[1743753960034,2.5043,1816.2,1816.1,1.4554]
[1743753960233,3.2346,1816.2,1816.1,1.4554]
[1743753961034,1.10156,1816.1,1816.0,0.3089]
[1743753961238,4.30936,1816.1,1816.0,1.41052]
[1743753961533,1.10161,1816.1,1815.9,2.2395]
[1743753961839,0.7303,1816.2,1816.1,1.10156]
[1743753962239,1.8318,1816.2,1816.1,1.10156]
[1743753962635,0.00824197,1816.5,1816.0,1.4717]
[1743753962837,0.00824197,1816.5,1816.4,1.10138]
[1743753963343,1.10956197,1816.5,1816.4,1.10138]
[1743753963532,1.10956197,1816.5,1816.4,2.56008]
[1743753965239,0.00824197,1816.5,1816.4,2.56008]
[1743753965440,1.10956197,1816.5,1816.4,2.56008]
[1743753966143,1e-08,1816.5,1816.4,11.03008]
[1743753966537,1e-08,1816.5,1816.4,14.78408]
[1743753968037,1.10132001,1816.5,1816.4,14.78408]
[1743753968643,1e-08,1816.5,1816.4,14.78408]
[1743753970038,1e-08,1816.5,1816.4,55.58408]
[1743753970444,1.10132001,1816.5,1816.4,1.4587]
[1743753970643,1.10132001,1816.5,1816.4,2.56008]
[1743753971546,1e-08,1816.5,1816.4,2.56008]
[1743753971745,1.10132001,1816.5,1816.4,2.56008]
[1743753971932,1.10132001,1816.5,1816.4,1.4587]
[1743753972242,1.10132001,1816.5,1816.4,2.56008]
[1743753972445,2.63052001,1816.5,1816.4,2.56008]
[1743753972645,1e-08,1816.5,1816.4,2.56008]
[1743753973145,1e-08,1816.5,1816.4,14.78608]